[Event "DEN-chT XtraCon 2018-19"]
[Site "Denmark"]
[Date "2019.03.17"]
[Round "9"]
[White "Jepson, Christian"]
[Black "Berg, Klaus"]
[Result "1/2-1/2"]
[ECO "E92"]
[WhiteElo "2391"]
[BlackElo "2298"]
[Annotator "NA"]
[PlyCount "99"]
[EventDate "2018.10.27"]
[EventType "team-tourn"]
[EventCountry "DEN"]
[SourceTitle "playchess.com"]
[Source "ChessBase"]
[SourceQuality "1"]
[TimeControl "40/5400+30:1800+30"]

1. c4 {[%emt 0:00:00]} g6 {[%emt 0:00:25]} 2. d4 {[%emt 0:00:31]} Bg7 {[%emt 0:00:29]} 3. e4 {[%emt 0:00:15]} d6 {[%emt 0:00:12]} 4. Nc3 {[%emt 0:00:07]} Nf6 {[%emt 0:01:13]} 5. Be2 {[%emt 0:01:26]} O-O {[%emt 0:00:10]} 6. Nf3 {[%emt 0:00:32]} e5 {[%emt 0:00:17]} 7. d5 {[%emt 0:00:04]} Na6 {[%emt 0:00:44]} 8. O-O {[%emt 0:01:31]} Nc5 {[%emt 0:00:56]} 9. Qc2 {[%emt 0:00:20]} a5 {[%emt 0:00:04]} 10. Bg5 {[%emt 0:00:23]} h6 {[%emt 0:00:53]} 11. Be3 {[%emt 0:00:38]} b6 {[%emt 0:02:40]} 12. Nd2 {[%emt 0:00:42]} Ng4 {[%emt 0:03:58]} 13. Bxg4 {[%emt 0:01:41]} Bxg4 {[%emt 0:00:06]} 14. b3 {[%emt 0:04:43]} Bd7 {[%emt 0:03:03]} 15. a3 {[%emt 0:00:26]} f5 {[%emt 0:01:17]} 16. f3 {[%emt 0:03:20]} fxe4 {[%emt 0:06:10]} 17. fxe4 {[%emt 0:12:26]} Rxf1+ {[%emt 0:05:13]} 18. Rxf1 {[%emt 0:03:31]} Be8 {[%emt 0:06:45]} 19. b4 {[%emt 0:19:32]} axb4 {[%emt 0:00:53]} 20. axb4 Nd7 {[%emt 0:00:24]} 21. Qb2 {[%emt 0:02:06]} Kh7 {[%emt 0:07:00]} 22. Ra1 {[%emt 0:02:01]} Bf6 {[%emt 0:03:58]} 23. Nb5 {[%emt 0:15:07]} Rxa1+ {[%emt 0:04:07]} 24. Qxa1 {[%emt 0:00:03]} Nf8 {[%emt 0:01:40]} 25. Nc3 {[%emt 0:06:48]} Bg5 {[%emt 0:00:11]} 26. Bxg5 {[%emt 0:02:57]} Qxg5 {[%emt 0:00:05]} 27. Nf1 {[%emt 0:00:06]} Bd7 {[%emt 0:05:12]} 28. Qe1 {[%emt 0:07:18]} Kg7 {[%emt 0:00:10]} 29. Qe3 {[%emt 0:00:49]} Nh7 {[%emt 0:03:59]} 30. Qxg5 {[%emt 0:01:29]} Nxg5 {[%emt 0:00:03]} 31. Nd2 {[%emt 0:01:08]} Kf7 {[%emt 0:01:07]} 32. Kf2 {[%emt 0:04:50]} Ke7 {[%emt 0:00:06]} 33. Nf3 {[%emt 0:00:46]} Nxf3 {[%emt 0:02:15]} 34. Kxf3 {[%emt 0:00:12]} Kf6 {[%emt 0:02:03]} 35. h3 {[%emt 0:04:28]} Kg5 {[%emt 0:03:12]} 36. Kg3 {[%emt 0:01:19]} h5 {[%emt 0:01:12]} 37. h4+ {[%emt 0:00:52]} Kf6 {[%emt 0:00:03]} 38. Kf2 {[%emt 0:00:33]} g5 {[%emt 0:02:22]} 39. g3 {[%emt 0:02:38]} gxh4 {[%emt 0:00:24]} 40. gxh4 {[%emt 0:00:16]} Ke7 {[%emt 0:00:19]} 41. Ke3 {[%emt 0:06:39]} Bh3 {[%emt 0:03:35]} 42. Nb5 {[%emt 0:04:40]} Kd7 {[%emt 0:01:12]} 43. Kf2 {[%emt 0:00:41]} Bg4 {[%emt 0:02:17]} 44. Na7 {[%emt 0:05:44]} Bd1 {[%emt 0:05:31]} 45. Ke3 {[%emt 0:00:06]} Bc2 {[%emt 0:05:54]} 46. b5 {[%emt 0:11:10]} Bd1 {[%emt 0:01:35]} 47. Nc6 {[%emt 0:00:09]} Bg4 {[%emt 0:00:11]} 48. Nb8+ {[%emt 0:00:25]} Kc8 {[%emt 0:01:16]} 49. Nc6 {[%emt 0:00:07]} Kd7 {[%emt 0:00:19]} 50. Nb8+ {[%emt 0:00:09]} 1/2-1/2

[Event "DEN-chT XtraCon 2018-19"]
[Site "Denmark"]
[Date "2019.03.17"]
[Round "9"]
[White "Rostgaard, Tobias Valentin"]
[Black "Kristensen, Leif"]
[Result "1/2-1/2"]
[ECO "A10"]
[WhiteElo "2388"]
[BlackElo "2309"]
[Annotator "NA"]
[PlyCount "116"]
[EventDate "2018.10.27"]
[EventType "team-tourn"]
[EventCountry "DEN"]
[SourceTitle "playchess.com"]
[Source "ChessBase"]
[SourceQuality "1"]
[TimeControl "40/5400+30:1800+30"]

1. c4 {[%emt 0:00:00]} g6 {[%emt 0:00:00]} 2. g3 {[%emt 0:00:00]} Bg7 {[%emt 0:00:21]} 3. Bg2 {[%emt 0:00:00]} d6 {[%emt 0:00:41]} 4. Nc3 {[%emt 0:00:12]} Nf6 {[%emt 0:01:36]} 5. e4 {[%emt 0:01:18]} e5 {[%emt 0:01:39]} 6. Nge2 {[%emt 0:00:16]} Nc6 {[%emt 0:04:05]} 7. d3 {[%emt 0:01:23]} Be6 {[%emt 0:02:54]} 8. O-O {[%emt 0:01:55]} Qd7 {[%emt 0:00:58] A26: English Opening vs King's Indian with ...Nc6 and d3} 9. Nd5 {[%emt 0:01:38]} Nh5 {[%emt 0:10:45]} (9... O-O 10. Bg5 Ng4 11. f3 f6 12. Bd2 Nh6 13. Be3 Ne7 14. d4 c6 15. Nxe7+ Qxe7 16. d5 Bc8 17. dxc6 bxc6 {1-0 (38) Hagen,A (2454)-Borge,N (2408) Denmark 2011}) 10. Be3 {[%emt 0:06:39]} Nd4 {[%emt 0:02:42]} 11. Nxd4 {[%emt 0:01:41]} exd4 {[%emt 0:00:02]} 12. Bd2 {[%emt 0:00:27]} c6 {[%emt 0:00:57]} 13. Nf4 {[%emt 0:00:41]} Nxf4 {[%emt 0:00:35]} 14. Bxf4 {[%emt 0:00:06]} O-O $146 {[%emt 0:01:27]} ({Predecessor:} 14... h5 15. Qd2 h4 16. gxh4 Rxh4 {½-½ (26) Kraich,K (2088)-Gould,C (1939) Bayern 2013}) 15. b4 {[%emt 0:03:23]} Rfe8 {[%emt 0:06:25]} 16. Re1 {[%emt 0:01:03]} f5 {[%emt 0:04:26]} 17. exf5 {[%emt 0:02:52]} Bxf5 {[%emt 0:00:13]} 18. Qd2 {[%emt 0:00:23]} Rac8 {[%emt 0:07:02]} 19. h4 {[%emt 0:02:22]} b5 {[%emt 0:06:26]} 20. Rxe8+ {[%emt 0:07:52]} Rxe8 {[%emt 0:00:06]} 21. cxb5 {[%emt 0:00:15]} cxb5 {[%emt 0:00:02]} 22. Rc1 {[%emt 0:00:17]} Qe6 {[%emt 0:04:08]} 23. Bf3 {[%emt 0:03:28]} Be5 {[%emt 0:05:50]} 24. Bxe5 {[%emt 0:03:09]} Qxe5 {[%emt 0:00:51]} 25. Bc6 {[%emt 0:05:43]} Re7 {[%emt 0:00:46]} 26. h5 {[%emt 0:03:04]} Kg7 {[%emt 0:01:53]} 27. Bf3 {[%emt 0:04:11]} Bh3 {[%emt 0:04:37]} 28. Kh2 {[%emt 0:10:36]} Qf5 {[%emt 0:08:10]} (28... Bd7 $11 {remains equal.}) 29. h6+ {[%emt 0:00:54]} Kf6 {[%emt 0:00:31]} 30. Be4 {[%emt 0:01:19]} Qh5 {[%emt 0:03:02]} 31. Qf4+ {[%emt 0:02:19]} Bf5+ {[%emt 0:04:00]} 32. Kg1 {[%emt 0:00:23]} Re5 $18 {[%emt 0:00:56]} 33. Bf3 {[%emt 0:02:02]} Qg5 {[%emt 0:00:44]} 34. Rc6 {[%emt 0:03:38]} Re1+ {[%emt 0:01:29]} 35. Kg2 {[%emt 0:00:37]} Qxf4 {[%emt 0:00:21]} 36. gxf4 {[%emt 0:00:06]} Ke6 {[%emt 0:02:23]} 37. Rc7 {[%emt 0:00:31]} g5 {[%emt 0:01:58]} 38. fxg5 {[%emt 0:00:58]} Bxd3 {[%emt 0:01:46]} 39. Rg7 {[%emt 0:02:13]} Re5 {[%emt 0:05:23]} 40. Bg4+ {[%emt 0:01:23]} Kd5 {[%emt 0:05:04]} 41. f4 {[%emt 0:30:31]} Re8 {[%emt 0:06:01]} 42. f5 {[%emt 0:00:00]} Be2 {[%emt 0:00:49]} 43. Bxe2 {[%emt 0:00:00]} Rxe2+ {[%emt 0:00:02]} 44. Kf3 {[%emt 0:00:00]} Re5 {[%emt 0:01:41]} 45. Rxa7 {[%emt 0:00:00]} Rxf5+ {[%emt 0:02:10]} 46. Kg4 {[%emt 0:00:00]} Rf8 {[%emt 0:02:39]} 47. a4 {[%emt 0:00:00]} bxa4 {[%emt 0:02:15]} 48. Rxa4 {[%emt 0:00:00]} d3 {[%emt 0:00:21]} 49. Ra1 {[%emt 0:00:00]} Kc4 {[%emt 0:03:10]} 50. Rb1 {[%emt 0:01:58]} Kc3 {[%emt 0:01:36]} 51. g6 {[%emt 0:07:56]} hxg6 {[%emt 0:00:44]} 52. b5 {[%emt 0:00:10]} d2 {[%emt 0:02:24]} 53. b6 {[%emt 0:01:20]} Kc2 {[%emt 0:04:42]} 54. Rh1 {[%emt 0:01:44]} d5 {[%emt 0:01:18]} 55. Kg5 {[%emt 0:00:51]} d1=Q {[%emt 0:01:28]} 56. Rxd1 {[%emt 0:00:04]} Kxd1 {[%emt 0:00:17]} 57. h7 {[%emt 0:02:44]} Rb8 {[%emt 0:01:44]} 58. Kh6 {[%emt 0:00:06]} d4 {[%emt 0:01:46]} 1/2-1/2

[Event "DEN-chT XtraCon 2018-19"]
[Site "Denmark"]
[Date "2019.03.17"]
[Round "9"]
[White "V. Pedersen, Nicolai"]
[Black "Jaksland, Tim"]
[Result "1-0"]
[ECO "B40"]
[WhiteElo "2384"]
[BlackElo "2228"]
[Annotator "NA"]
[PlyCount "69"]
[EventDate "2018.10.27"]
[EventType "team-tourn"]
[EventCountry "DEN"]
[SourceTitle "playchess.com"]
[Source "ChessBase"]
[SourceQuality "1"]
[TimeControl "40/5400+30:1800+30"]

1. e4 {[%emt 0:00:00]} c5 {[%emt 0:00:00]} 2. Nf3 {[%emt 0:00:00]} e6 {[%emt 0:00:06]} 3. c3 {[%emt 0:00:57]} Nf6 {[%emt 0:01:00]} 4. e5 {[%emt 0:00:26]} Nd5 {[%emt 0:00:07]} 5. d4 {[%emt 0:00:16]} cxd4 {[%emt 0:00:25]} 6. cxd4 {[%emt 0:00:23]} d6 {[%emt 0:00:28]} 7. Bd3 {[%emt 0:04:36]} Nc6 {[%emt 0:06:31]} 8. O-O {[%emt 0:02:52]} Ndb4 {[%emt 0:08:04]} 9. Bc4 {[%emt 0:06:03]} dxe5 {[%emt 0:04:20]} 10. a3 $1 {[%emt 0:13:29]} e4 {[%emt 0:11:56]} 11. Ng5 {[%emt 0:02:59]} Nd3 {[%emt 0:04:59]} 12. d5 {[%emt 0:06:43]} (12. Qh5 $2 g6 $17) 12... exd5 {[%emt 0:10:42]} 13. Bxd3 {[%emt 0:02:41]} exd3 {[%emt 0:00:08]} 14. Re1+ {[%emt 0:01:08]} Be7 {[%emt 0:01:07]} 15. Qh5 {[%emt 0:03:39]} g6 {[%emt 0:01:31]} 16. Qh6 {[%emt 0:01:51]} Be6 {[%emt 0:22:55]} 17. Bf4 $15 {[%emt 0:27:39]} Qd7 {[%emt 0:12:06]} 18. Nc3 {[%emt 0:01:47]} O-O-O {[%emt 0:03:37]} 19. Rac1 {[%emt 0:01:00]} Bd6 {[%emt 0:02:48]} 20. Bxd6 {[%emt 0:02:56]} Qxd6 {[%emt 0:00:07]} 21. Nxe6 {[%emt 0:01:56]} fxe6 {[%emt 0:00:45]} 22. Nb5 {[%emt 0:00:14]} Qf8 {[%emt 0:00:29]} 23. Qe3 {[%emt 0:01:29]} d4 {[%emt 0:06:47]} 24. Nxa7+ {[%emt 0:05:46]} Kc7 {[%emt 0:00:24]} 25. Qxd3 {[%emt 0:01:03]} Qf5 {[%emt 0:00:22]} 26. Qg3+ {[%emt 0:02:13]} Kd7 {[%emt 0:00:39]} 27. Nxc6 {[%emt 0:06:15]} bxc6 {[%emt 0:00:02]} 28. Re5 {[%emt 0:00:06]} Qf6 {[%emt 0:00:31]} 29. Rd1 {[%emt 0:00:14]} Ke7 {[%emt 0:00:34]} 30. Rd3 {[%emt 0:01:01]} Rd7 {[%emt 0:00:25]} 31. Rf3 {[%emt 0:00:41]} Qg7 {[%emt 0:00:22]} 32. Qg5+ {[%emt 0:00:27]} Kd6 {[%emt 0:00:10]} 33. Rf6 {[%emt 0:00:34]} Re8 {[%emt 0:00:08]} 34. Qf4 {[%emt 0:00:20]} g5 {[%emt 0:01:48]} 35. Rxg5+ {[%emt 0:00:22] Kd5} 1-0

[Event "DEN-chT XtraCon 2018-19"]
[Site "Denmark"]
[Date "2019.03.17"]
[Round "9"]
[White "Hoi, Carsten"]
[Black "Christensen, Stefan"]
[Result "1-0"]
[ECO "A05"]
[WhiteElo "2359"]
[BlackElo "2255"]
[Annotator "NA"]
[PlyCount "69"]
[EventDate "2018.10.27"]
[EventType "team-tourn"]
[EventCountry "DEN"]
[SourceTitle "playchess.com"]
[Source "ChessBase"]
[SourceQuality "1"]
[TimeControl "40/5400+30:1800+30"]

1. Nf3 {[%emt 0:00:00]} Nf6 {[%emt 0:00:00]} 2. c4 {[%emt 0:00:00]} b6 {[%emt 0:00:25]} 3. Nc3 {[%emt 0:00:48]} Bb7 {[%emt 0:00:21]} 4. d4 {[%emt 0:00:16]} e6 {[%emt 0:00:54]} 5. a3 {[%emt 0:01:58]} d5 {[%emt 0:01:09]} 6. Bg5 {[%emt 0:02:20]} Be7 {[%emt 0:04:01]} 7. e3 {[%emt 0:07:32]} O-O {[%emt 0:00:52]} 8. Bd3 {[%emt 0:02:43]} dxc4 {[%emt 0:04:35]} 9. Bxc4 {[%emt 0:00:16]} Nbd7 {[%emt 0:01:07]} 10. O-O {[%emt 0:02:34]} c5 {[%emt 0:02:30] E12: Queen's Indian: Unusual White 4th moves, 4 a3, 4 Nc3 Bb7 5 a3 and 4 Nc3 Bb7} 11. Qe2 {[%emt 0:05:09]} cxd4 {[%emt 0:02:45]} (11... Ne4 12. Nxe4 Bxe4 13. Bxe7 Qxe7 14. Rfd1 Bxf3 15. Qxf3 cxd4 16. Bb5 Nf6 17. Rxd4 Rad8 18. Rxd8 Rxd8 {½-½ (30) Kamsky,G (2762)-Karjakin,S (2775) Tashkent 2012}) 12. exd4 {[%emt 0:02:03]} Re8 {[%emt 0:05:40]} 13. Rfd1 $146 {[%emt 0:07:31]} ({Predecessor:} 13. Rad1 Nd5 14. Bxd5 Bxd5 15. Nxd5 exd5 16. Bxe7 Rxe7 17. Qb5 Nf6 18. Ne5 {½-½ (32) Demina,J (2330)-Iljushina,O (2281) Sochi 2007}) 13... Nd5 {[%emt 0:09:48]} 14. Bxd5 {[%emt 0:07:06]} Bxd5 {[%emt 0:01:55]} 15. Nxd5 {[%emt 0:03:24]} exd5 {[%emt 0:00:27]} 16. Bxe7 {[%emt 0:00:59]} Qxe7 {[%emt 0:07:33]} 17. Qb5 {[%emt 0:08:12]} Qd6 {[%emt 0:02:59]} 18. Rac1 {[%emt 0:00:25]} Rac8 {[%emt 0:04:29]} 19. g3 {[%emt 0:02:40]} f6 {[%emt 0:11:17]} 20. Qa6 {[%emt 0:03:26]} Rc7 {[%emt 0:05:47]} 21. Rxc7 {[%emt 0:06:07]} Qxc7 {[%emt 0:00:07]} 22. Qb5 {[%emt 0:00:27]} Qb7 $1 {[%emt 0:04:00]} 23. Rc1 {[%emt 0:02:21]} Re6 {[%emt 0:04:35]} 24. Nh4 {[%emt 0:11:55]} g6 {[%emt 0:02:58]} 25. Ng2 $16 {[%emt 0:00:35]} Re4 {[%emt 0:09:19]} 26. Qb4 {[%emt 0:06:09]} Ne5 {[%emt 0:04:40]} 27. Qd6 {[%emt 0:04:03]} Nc4 {[%emt 0:02:48]} 28. Qxf6 {[%emt 0:05:04]} Qf7 {[%emt 0:01:58]} 29. Qg5 {[%emt 0:02:54]} Rxd4 {[%emt 0:01:35]} 30. b3 {[%emt 0:03:08]} Nd6 {[%emt 0:00:31]} 31. Qe5 {[%emt 0:01:46]} Rd2 {[%emt 0:02:59]} 32. Nf4 {[%emt 0:00:02]} Qf8 {[%emt 0:01:15]} 33. Rc7 {[%emt 0:01:06]} Nf7 {[%emt 0:00:38]} 34. Qe6 {[%emt 0:00:48]} Kg7 {[%emt 0:00:23]} 35. Qe1 {[%emt 0:00:52]} 1-0

[Event "DEN-chT XtraCon 2018-19"]
[Site "Denmark"]
[Date "2019.03.17"]
[Round "9"]
[White "Haubro, Martin"]
[Black "Kristensen, Bjarke Hautop"]
[Result "1-0"]
[ECO "B32"]
[WhiteElo "2358"]
[BlackElo "2223"]
[Annotator "NA"]
[PlyCount "129"]
[EventDate "2018.10.27"]
[EventType "team-tourn"]
[EventCountry "DEN"]
[SourceTitle "playchess.com"]
[Source "ChessBase"]
[SourceQuality "1"]
[TimeControl "40/5400+30:1800+30"]

1. e4 {[%emt 0:00:00]} c5 {[%emt 0:00:00]} 2. Nf3 {[%emt 0:00:00]} Nc6 {[%emt 0:00:00]} 3. d4 {[%emt 0:00:00]} cxd4 {[%emt 0:00:00]} 4. Nxd4 {[%emt 0:00:00]} e5 {[%emt 0:00:00]} 5. Nb5 {[%emt 0:00:00]} d6 {[%emt 0:00:05]} 6. c4 {[%emt 0:00:00]} Be7 {[%emt 0:00:13]} 7. N1c3 {[%emt 0:00:00]} a6 {[%emt 0:00:08]} 8. Na3 {[%emt 0:00:00]} Be6 {[%emt 0:00:17]} 9. Nc2 {[%emt 0:01:11]} Rc8 {[%emt 0:00:33]} 10. b3 {[%emt 0:15:55]} Nf6 {[%emt 0:00:09]} 11. Be2 {[%emt 0:01:39] B32: Sicilian: Löwenthal and Kalashnikov Variations} O-O {[%emt 0:00:06]} 12. Bb2 {[%emt 0:01:53]} (12. a4 b5 13. axb5 axb5 14. Nxb5 Nxe4 15. O-O d5 16. cxd5 Qxd5 17. Bc4 Qxd1 18. Rxd1 {½-½ (18) Kramnik,V (2759)-Radjabov,T (2756) Baku 2009}) 12... b5 {[%emt 0:00:05]} 13. cxb5 {[%emt 0:19:16]} axb5 {[%emt 0:00:09]} 14. Bf3 {[%emt 0:18:46]} Qb6 {[%emt 0:17:08]} 15. O-O {[%emt 0:00:25]} b4 {[%emt 0:04:36]} 16. Nd5 {[%emt 0:00:13]} Bxd5 {[%emt 0:00:05]} 17. exd5 {[%emt 0:00:05]} Na5 $146 {[%emt 0:00:09]} ({Predecessor:} 17... Nb8 18. Ne3 Rfe8 {0-1 (47) Edouard,R (2221)-Gregoire,S (2280) Cannes 2005}) 18. Qd2 {[%emt 0:06:02]} Rb8 $1 {[%emt 0:00:32]} 19. Ne3 {[%emt 0:02:11]} g6 {[%emt 0:01:53]} 20. Rfc1 {[%emt 0:02:25]} Nd7 {[%emt 0:11:27]} 21. Bd1 {[%emt 0:07:24]} Nc5 {[%emt 0:07:32]} 22. Nc4 {[%emt 0:02:18]} Nxc4 {[%emt 0:01:16]} 23. Rxc4 {[%emt 0:00:04]} f5 {[%emt 0:09:29]} 24. Bc2 {[%emt 0:01:21]} Rfc8 {[%emt 0:02:27]} 25. Rc1 {[%emt 0:01:17]} Rf8 {[%emt 0:07:52]} 26. Bb1 {[%emt 0:01:54]} Bf6 {[%emt 0:00:29]} 27. Kh1 {[%emt 0:03:40]} f4 $11 {[%emt 0:00:17]} 28. Qe2 {[%emt 0:02:08]} Kg7 {[%emt 0:08:06]} 29. Qg4 {[%emt 0:00:16]} Qb7 {[%emt 0:01:02]} 30. Rd1 {[%emt 0:00:18]} Rf7 {[%emt 0:01:58]} 31. g3 {[%emt 0:01:29]} Rbf8 {[%emt 0:05:36]} 32. gxf4 {[%emt 0:01:12]} exf4 {[%emt 0:00:05]} 33. Bc1 {[%emt 0:02:48]} Be5 {[%emt 0:00:35]} 34. Qf3 {[%emt 0:00:40]} Rf6 {[%emt 0:03:55]} 35. Bd2 {[%emt 0:00:34]} Na6 {[%emt 0:03:01]} 36. Rdc1 {[%emt 0:01:37]} R8f7 {[%emt 0:00:39]} 37. Be4 {[%emt 0:01:15]} Bb2 {[%emt 0:06:18]} 38. R1c2 {[%emt 0:00:04]} Be5 {[%emt 0:00:05]} 39. Qh3 {[%emt 0:00:19]} Qb5 {[%emt 0:03:50]} 40. Bf3 {[%emt 0:00:45]} Rf5 {[%emt 0:01:25]} 41. Qf1 {[%emt 0:38:10]} Rg5 {[%emt 0:07:27]} 42. Qe1 {[%emt 0:00:00]} Qd7 {[%emt 0:02:09]} 43. Qf1 {[%emt 0:00:00]} Qb5 {[%emt 0:02:56]} 44. h4 {[%emt 0:00:00]} Rgf5 {[%emt 0:00:05]} 45. Qh3 {[%emt 0:00:00]} h6 {[%emt 0:10:29]} 46. Kg1 {[%emt 0:00:00]} R5f6 {[%emt 0:03:40]} 47. Qc8 {[%emt 0:00:00]} Nc5 {[%emt 0:02:55]} 48. Qc6 {[%emt 0:00:00]} Qb8 {[%emt 0:00:23]} 49. Rxb4 {[%emt 0:00:00]} Qd8 {[%emt 0:01:15]} 50. Bg4 {[%emt 0:00:00]} h5 {[%emt 0:01:03]} 51. Bh3 {[%emt 0:00:00]} g5 {[%emt 0:00:04]} 52. Qc8 {[%emt 0:00:27]} Qe7 {[%emt 0:01:18]} 53. Be6 {[%emt 0:03:05]} gxh4 {[%emt 0:04:45]} 54. Bxf7 {[%emt 0:00:28]} Rxf7 {[%emt 0:00:01]} 55. Qh3 {[%emt 0:01:00]} Rf6 {[%emt 0:00:42]} 56. Kf1 {[%emt 0:00:50]} Rg6 {[%emt 0:01:11]} 57. Bxf4 {[%emt 0:01:17]} Bxf4 {[%emt 0:01:21]} 58. Rxf4 {[%emt 0:00:05]} Qg5 {[%emt 0:00:03]} 59. Qf5 {[%emt 0:00:51]} Qg2+ {[%emt 0:01:15]} 60. Ke2 {[%emt 0:00:06]} Kh6 {[%emt 0:00:03]} 61. Rxh4 {[%emt 0:01:24]} Rg5 {[%emt 0:00:22]} 62. Qf6+ {[%emt 0:00:17]} Kh7 {[%emt 0:01:44]} 63. Qe7+ {[%emt 0:00:40]} Kg8 {[%emt 0:00:31]} 64. Qxd6 {[%emt 0:00:47]} Rxd5 {[%emt 0:01:33]} 65. Qg3+ {[%emt 0:00:09]} 1-0

[Event "DEN-chT XtraCon 2018-19"]
[Site "Denmark"]
[Date "2019.03.17"]
[Round "9"]
[White "Kjems Hove, Esben"]
[Black "Rewitz, Poul"]
[Result "1-0"]
[ECO "D78"]
[WhiteElo "2315"]
[BlackElo "2227"]
[Annotator "NA"]
[PlyCount "127"]
[EventDate "2018.10.27"]
[EventType "team-tourn"]
[EventCountry "DEN"]
[SourceTitle "playchess.com"]
[Source "ChessBase"]
[SourceQuality "1"]
[TimeControl "40/5400+30:1800+30"]

1. d4 {[%emt 0:00:00]} Nf6 {[%emt 0:00:00]} 2. g3 {[%emt 0:01:21]} g6 {[%emt 0:00:45]} 3. Bg2 {[%emt 0:00:11]} Bg7 {[%emt 0:00:07]} 4. Nf3 {[%emt 0:00:47]} O-O {[%emt 0:00:59]} 5. O-O {[%emt 0:00:05]} d5 {[%emt 0:01:00]} 6. c4 {[%emt 0:01:11]} c6 {[%emt 0:00:45]} 7. Qb3 {[%emt 0:00:52]} a5 {[%emt 0:04:47]} 8. cxd5 {[%emt 0:03:12]} a4 {[%emt 0:01:26]} 9. Qd1 {[%emt 0:00:30]} Nxd5 {[%emt 0:05:09]} 10. e4 {[%emt 0:01:26]} Nb6 {[%emt 0:01:14]} 11. Na3 {[%emt 0:06:43]} Bg4 {[%emt 0:07:30]} 12. Be3 {[%emt 0:03:45]} N8d7 {[%emt 0:09:06]} 13. Qc2 {[%emt 0:09:34]} Bxf3 {[%emt 0:10:01]} 14. Bxf3 {[%emt 0:00:54]} e6 {[%emt 0:00:33]} 15. Rad1 {[%emt 0:11:22]} Qe7 {[%emt 0:01:01]} 16. Bg2 {[%emt 0:03:55]} Qb4 {[%emt 0:01:36]} 17. Qc3 {[%emt 0:05:24]} Qa5 {[%emt 0:09:00]} 18. Rfe1 {[%emt 0:13:56]} Rfc8 {[%emt 0:00:51]} 19. Bd2 {[%emt 0:07:30]} Qxc3 {[%emt 0:01:58]} 20. Bxc3 {[%emt 0:01:44]} Bf8 {[%emt 0:02:01]} 21. Nb1 {[%emt 0:00:24]} Nc4 {[%emt 0:09:08]} 22. d5 {[%emt 0:05:57]} Nc5 {[%emt 0:01:27]} 23. dxe6 {[%emt 0:05:23]} Nxe6 {[%emt 0:00:47]} 24. Bf1 {[%emt 0:03:01]} Nd6 {[%emt 0:01:29]} 25. Be5 {[%emt 0:02:54]} Nb5 {[%emt 0:02:29]} 26. Bc4 {[%emt 0:02:23]} Re8 {[%emt 0:01:08]} 27. Bf6 {[%emt 0:01:02]} Nd6 {[%emt 0:02:09]} 28. Bf1 {[%emt 0:00:15]} Nc5 {[%emt 0:02:09]} 29. f3 {[%emt 0:01:20]} b5 {[%emt 0:04:27]} 30. Nc3 {[%emt 0:03:11]} Nd7 {[%emt 0:02:22]} 31. Bg5 {[%emt 0:01:01]} Ne5 {[%emt 0:01:07]} 32. Kg2 {[%emt 0:00:03]} Re6 {[%emt 0:04:21]} 33. Bc1 {[%emt 0:02:23]} Rae8 {[%emt 0:06:23]} 34. f4 {[%emt 0:02:20]} Nec4 {[%emt 0:01:59]} 35. e5 {[%emt 0:00:13]} Nb6 {[%emt 0:00:50]} 36. Re2 {[%emt 0:00:26]} Ndc4 {[%emt 0:01:57]} 37. Ne4 {[%emt 0:00:35]} Bg7 {[%emt 0:00:49]} 38. b3 {[%emt 0:00:20]} axb3 {[%emt 0:02:39]} 39. axb3 {[%emt 0:00:05]} Nxe5 {[%emt 0:00:42]} 40. Nc5 {[%emt 0:01:00]} Ng4 {[%emt 0:00:57]} 41. Nxe6 {[%emt 0:30:26]} fxe6 {[%emt 0:30:29]} 42. Rd6 {[%emt 0:00:00]} Kf7 {[%emt 0:00:00]} 43. Rxc6 {[%emt 0:00:00]} Nd5 {[%emt 0:00:00]} 44. h3 {[%emt 0:00:00]} Nh6 {[%emt 0:00:00]} 45. Ra2 {[%emt 0:00:00]} Bd4 {[%emt 0:00:00]} 46. Bxb5 {[%emt 0:00:00]} Re7 {[%emt 0:00:00]} 47. Ra4 {[%emt 0:00:00]} Bg7 {[%emt 0:00:00]} 48. Bc4 {[%emt 0:00:00]} Nf5 {[%emt 0:00:00]} 49. g4 {[%emt 0:00:00]} Nd4 {[%emt 0:00:00]} 50. Rd6 {[%emt 0:00:00]} Nc3 {[%emt 0:00:00]} 51. Ra8 {[%emt 0:00:00]} Nde2 {[%emt 0:00:37]} 52. Be3 {[%emt 0:00:00]} Ne4 {[%emt 0:01:03]} 53. Rda6 {[%emt 0:00:00]} Nd4 {[%emt 0:01:25]} 54. R8a7 {[%emt 0:00:00]} Nc5 {[%emt 0:01:19]} 55. Rxe7+ {[%emt 0:00:00]} Kxe7 {[%emt 0:00:06]} 56. Ra7+ {[%emt 0:00:00]} Nd7 {[%emt 0:00:39]} 57. Rb7 {[%emt 0:00:40]} Kd6 {[%emt 0:01:00]} 58. Ra7 {[%emt 0:02:25]} Nc6 {[%emt 0:00:24]} 59. Ra8 {[%emt 0:00:30]} Bc3 {[%emt 0:00:33]} 60. Kf3 {[%emt 0:01:35]} h5 {[%emt 0:00:59]} 61. Bb5 {[%emt 0:01:22]} hxg4+ {[%emt 0:01:14]} 62. hxg4 {[%emt 0:00:06]} e5 {[%emt 0:00:19]} 63. Bxc6 {[%emt 0:00:12]} Kxc6 {[%emt 0:00:09]} 64. Rc8+ {[%emt 0:00:06]} 1-0